bitfinex-derivatives/quotes_ETHF0:USTF0_20241229
["timestamp","ask_amount","ask_price","bid_price","bid_amount"]
[1735455231773,0.4511,3397.0,3396.9,1.33641013]
[1735455231969,0.74599,3397.0,3396.9,0.2949]
[1735455232173,0.4511,3397.0,3396.9,1.33641013]
[1735455232776,2.76859637,3397.0,3396.9,1.33641013]
[1735455235782,0.4511,3397.0,3396.9,1.33641013]
[1735455237379,2.31749637,3397.0,3396.9,1.33641013]
[1735455240580,2.61237637,3397.1,3397.0,0.29489]
[1735455241086,2.31749637,3397.1,3397.0,0.29489]
[1735455241281,2.31749637,3397.1,3397.0,0.72829]
[1735455241887,2.31749637,3397.1,3397.0,1.17899]
[1735455242088,3.47086387,3397.1,3397.0,1.17899]
[1735455243880,3.47086387,3397.1,3397.0,1.60279]
[1735455244087,3.47086387,3397.1,3397.0,2.64430013]
[1735455244588,3.76574387,3397.1,3397.0,2.22050013]
[1735455244887,2.61274487,3397.1,3397.0,1.33640013]
[1735455245075,2.31786487,3397.1,3397.0,1.33640013]
[1735455245988,0.2949,3396.9,3396.8,5.63452346]
[1735455246187,0.2949,3396.9,3396.8,1.04151013]
[1735455246390,0.2949,3396.9,3396.8,1.33641013]
[1735455246686,0.72959,3397.0,3396.9,0.2949]
[1735455247687,0.4347,3397.0,3396.9,0.2949]
[1735455248586,3.91130557,3397.0,3396.9,0.2949]
[1735455252190,0.4347,3397.0,3396.9,0.2949]
[1735455253491,3.92020557,3397.1,3396.8,1.04151013]
[1735455253789,3.92020557,3397.1,3397.0,1.33640013]
[1735455254185,4.21508557,3397.1,3397.0,2.19480013]
[1735455254989,3.92020557,3397.1,3397.0,2.19480013]
[1735455256290,4.21508557,3397.1,3397.0,2.19480013]
[1735455256691,3.92020557,3397.1,3397.0,2.19480013]
[1735455261687,4.21508557,3397.1,3397.0,2.19480013]
[1735455262087,4.21508557,3397.1,3397.0,1.33640013]
[1735455262993,5.34801773,3397.1,3397.0,1.33640013]
[1735455263987,5.34801773,3397.1,3397.0,1.04151013]
[1735455264187,5.34801773,3397.1,3397.0,1.33640013]
[1735455264388,0.2949,3396.8,3396.7,3.2078]
[1735455265591,4.90443773,3396.8,3396.7,3.2078]
[1735455266897,6.0984304,3396.8,3396.7,3.2078]
[1735455267894,6.0984304,3396.8,3396.2,1.04151013]
[1735455267895,5.8035304,3396.8,3396.2,1.04151013]
[1735455268095,0.29495,3396.3,3396.2,1.04151013]
[1735455268892,0.29495,3396.3,3396.0,4.59301333]
[1735455268893,1.04151013,3396.3,3396.0,4.59301333]
[1735455269092,1.33648013,3396.1,3396.0,4.59301333]
[1735455269995,0.29497,3396.0,3395.9,6.92607928]
[1735455270195,1.04151013,3396.1,3395.6,4.59301333]
[1735455270394,0.295,3395.7,3395.6,4.59301333]
[1735455271691,0.295,3395.7,3395.6,5.63452346]
[1735455271692,2.61191001,3395.7,3395.6,5.63452346]
[1735455271897,2.61191001,3395.7,3395.6,1.04151013]
[1735455272106,3.05361001,3395.7,3395.6,1.04151013]
[1735455272301,0.29501,3395.6,3395.4,3.50283]
[1735455272501,0.75971,3395.6,3395.4,3.50283]
[1735455272798,0.75971,3395.6,3395.5,0.29502]
[1735455272988,0.4647,3395.6,3395.5,0.29502]
[1735455273192,0.4647,3395.6,3395.4,3.50282]
[1735455273806,0.75971,3395.6,3395.4,3.50282]
[1735455274099,0.75971,3395.6,3395.5,0.29502]
[1735455274601,0.4647,3395.6,3395.5,0.29502]
[1735455275097,0.75971,3395.6,3395.5,0.29502]
[1735455275493,0.4647,3395.6,3395.5,0.29502]
[1735455279897,2.31691001,3396.0,3395.4,3.2078]
[1735455280104,0.4528,3395.9,3395.8,0.29499]
[1735455283399,0.74778,3395.9,3395.8,0.29499]
[1735455284402,0.4528,3395.9,3395.8,0.29499]
[1735455285904,0.74778,3395.9,3395.8,0.29499]
[1735455287906,0.74778,3395.9,3395.7,0.29499]
[1735455288206,0.74779,3395.9,3395.8,0.29499]
[1735455289210,0.29499,3395.8,3395.7,0.295]
[1735455289512,0.74779,3395.9,3395.8,0.29499]
[1735455290208,0.4528,3395.9,3395.5,0.29502]
[1735455290708,0.29501,3395.7,3395.6,0.29501]
[1735455291904,0.295,3395.8,3395.7,0.29499]
[1735455295109,0.74779,3395.9,3395.8,0.29499]
[1735455295410,0.74779,3395.9,3395.8,0.72259]
[1735455298807,0.74779,3395.9,3395.8,1.16009]
[1735455300310,0.29499,3395.9,3395.8,1.16009]
[1735455301614,3.18431001,3396.1,3395.8,0.8651]
[1735455301813,3.47928001,3396.1,3396.0,0.29497]
[1735455303017,0.29497,3396.0,3395.9,0.4632]
[1735455303204,0.29498,3395.9,3395.8,0.72259]
[1735455304015,0.295,3395.8,3395.7,0.29499]
[1735455304907,2.31385392,3395.9,3395.6,0.4632]
[1735455305112,2.31385392,3395.9,3395.5,0.75781]
[1735455305113,0.29501,3395.6,3395.5,0.75781]
[1735455305409,2.31385392,3395.9,3395.5,0.8837]
[1735455305611,0.295,3395.7,3395.6,0.295]
[1735455306117,2.60885392,3395.7,3395.6,0.295]
[1735455307112,2.31385392,3395.8,3395.6,1.33780545]
[1735455307316,2.31385392,3395.8,3395.7,0.295]
[1735455308319,2.31385392,3395.9,3395.8,0.29499]
[1735455309314,3.77034502,3396.0,3395.6,1.04280545]
[1735455309516,3.77034502,3396.0,3395.9,0.29498]
[1735455310719,0.29498,3396.0,3395.9,0.29498]
[1735455310920,5.06895683,3396.1,3395.6,1.04280545]
[1735455311217,0.29499,3395.8,3395.7,0.29499]
[1735455312117,3.77427544,3395.8,3395.7,0.29499]
[1735455313117,0.29499,3395.8,3395.7,0.29499]
[1735455313515,0.75199,3395.8,3395.7,0.29499]
[1735455314121,0.457,3395.8,3395.7,0.29499]
[1735455314822,5.8035304,3395.9,3395.8,0.29499]
[1735455315616,0.29498,3396.0,3395.6,5.63581878]
[1735455315617,5.8035304,3396.0,3395.6,5.63581878]
[1735455315818,5.8035304,3396.0,3395.9,0.29498]
[1735455316422,6.0985004,3396.0,3395.9,0.29498]
[1735455316821,5.8035304,3396.0,3395.6,5.63581878]
[1735455317021,0.29499,3395.8,3395.7,0.295]
[1735455317719,0.72549,3395.9,3395.8,0.29499]
[1735455318224,0.72549,3395.9,3395.6,5.63581878]
[1735455318523,0.4305,3395.9,3395.6,5.63581878]
[1735455318724,0.295,3395.8,3395.7,0.295]
[1735455320525,6.2340304,3395.9,3395.7,0.295]
[1735455320711,6.5290204,3395.9,3395.7,0.295]
[1735455321822,6.2340304,3395.9,3395.5,0.8837]
[1735455322121,6.5290204,3395.9,3395.8,0.29499]
[1735455323325,0.29499,3395.8,3395.6,0.295]
[1735455323625,0.295,3395.7,3395.6,0.295]
[1735455324219,6.2340304,3395.9,3395.5,5.47671333]
[1735455324528,6.5290204,3395.9,3395.6,0.29501]
[1735455324727,5.8035304,3395.8,3395.7,0.29499]
[1735455325723,4.6437726,3395.8,3395.5,5.47671333]
[1735455325928,4.6437726,3395.8,3395.7,0.295]
[1735455329432,5.0742726,3395.9,3395.8,0.29499]
[1735455330031,5.3692526,3395.9,3395.8,0.29499]
[1735455330827,1.6864026,3395.9,3395.8,5.0]
[1735455331027,1.20033983,3396.8,3396.2,3.2078]
[1735455331231,2.29679941,3396.9,3396.8,0.29491]
[1735455331433,1.12545798,3397.3,3397.2,0.29487]
[1735455331634,1.12545798,3397.3,3397.2,4.54547545]
[1735455332432,2.32046785,3397.4,3397.3,0.29486]
[1735455333529,0.4223,3397.8,3397.3,14.54551701]
[1735455333840,0.4223,3397.8,3397.7,1.33763545]
[1735455334333,6.95019815,3397.8,3397.7,0.29483]
[1735455334734,6.95019815,3397.8,3397.7,5.67569089]
[1735455335833,4.29615969,3397.8,3397.7,4.86978623]
[1735455336432,4.29615969,3397.8,3397.7,0.29483]
[1735455337537,3.2078,3398.7,3398.5,0.29476]
[1735455337737,0.4381,3398.6,3398.5,0.29476]
[1735455337933,4.31215969,3398.6,3398.5,0.29476]
[1735455343344,0.4381,3398.6,3398.5,0.29476]
[1735455346342,3.2078,3398.7,3398.6,0.29475]
[1735455346743,7.08185969,3398.7,3398.6,0.29475]
[1735455349545,7.52595969,3398.7,3398.6,0.29475]
[1735455349838,7.52595969,3398.7,3398.1,3.2078]
[1735455350047,0.29475,3398.6,3398.5,0.29475]
[1735455350250,0.29476,3398.5,3398.4,0.29476]
[1735455350440,0.29476,3398.5,3398.4,0.29477]
[1735455350640,4.16881969,3398.5,3398.4,0.29477]
[1735455350838,3.87405969,3398.5,3398.4,0.29477]
[1735455351346,4.16881969,3398.5,3398.4,0.29477]
[1735455351946,3.87405969,3398.5,3398.3,0.29477]
[1735455352140,0.29477,3398.4,3398.3,0.29477]
[1735455352445,4.16881969,3398.5,3398.3,0.29477]
[1735455353748,3.87405969,3398.5,3398.1,3.50259]
[1735455353947,0.29478,3398.2,3398.1,3.2078]
[1735455354144,0.73688,3398.6,3397.9,0.2948]
[1735455354145,0.2948,3398.1,3397.9,0.2948]
[1735455354449,0.4591,3398.0,3397.9,0.2948]
[1735455354747,1.12535969,3398.0,3397.9,0.2948]
[1735455361959,0.66625969,3398.0,3397.9,0.2948]
[1735455362752,0.4335,3398.2,3398.1,0.29479]
[1735455366046,3.7068,3398.3,3397.8,0.66592162]
[1735455366355,3.7068,3398.3,3398.2,0.29478]
[1735455368755,0.499,3398.3,3398.2,0.29478]
[1735455369442,0.0612,3398.3,3398.2,0.29478]
[1735455369647,3.25378902,3399.6,3398.2,0.29478]
[1735455369648,3.2078,3399.3,3399.2,0.2947]
[1735455370143,3.2078,3399.9,3399.1,3.2078]
[1735455370343,3.2078,3399.9,3399.8,0.29464]
[1735455370844,3.2078,3399.9,3399.1,4.23876]
[1735455371045,3.50244,3399.9,3399.6,0.29466]
[1735455371252,0.29465,3399.8,3399.5,0.29467]
[1735455371455,0.29466,3399.7,3399.4,0.29467]
[1735455372152,0.29467,3399.6,3399.3,0.29468]
[1735455372351,3.2078,3399.9,3399.2,4.57495623]
[1735455372550,0.29466,3399.7,3399.2,4.57495623]
[1735455372850,0.29465,3399.8,3399.2,4.57495623]
[1735455373355,0.29466,3399.7,3399.5,0.29467]
[1735455373560,3.2078,3399.9,3399.1,7.78275623]
[1735455374245,0.29467,3399.5,3399.3,0.29468]
[1735455374443,0.877,3399.4,3399.3,0.29468]
[1735455374649,1.3257,3399.4,3399.3,0.29468]
[1735455374953,1.3257,3399.4,3399.2,4.86964623]
[1735455375148,1.3257,3399.4,3399.2,4.57495623]
[1735455375343,1.3257,3399.4,3399.3,4.86964623]
[1735455376057,1.3257,3399.4,3399.3,4.57495623]
[1735455376243,1.62038,3399.4,3399.3,4.57495623]
[1735455376446,0.29469,3399.3,3399.1,10.07473784]
[1735455376650,1.3257,3399.4,3399.1,6.86693784]
[1735455376855,0.29469,3399.3,3399.1,7.16163784]
[1735455377556,1.3257,3399.4,3399.1,7.16163784]
[1735455377758,0.29469,3399.3,3399.2,4.57541477]
[1735455378747,1.3257,3399.4,3399.2,4.57541477]
[1735455378954,1.3257,3399.4,3399.3,0.29469]
[1735455379257,1.62038,3399.4,3399.2,0.29469]
[1735455379458,1.3257,3399.4,3399.3,0.29469]
[1735455381759,1.62038,3399.4,3399.3,0.29469]
[1735455382652,1.3257,3399.4,3399.0,4.57541477]
[1735455382858,0.29471,3399.1,3399.0,4.57541477]
[1735455383246,0.29471,3399.1,3399.0,4.87012477]
[1735455383657,3.2078,3399.3,3399.0,4.57541477]
[1735455384052,0.29471,3399.1,3399.0,3.87541477]
[1735455384352,0.29471,3399.0,3398.9,3.87541477]
[1735455384759,0.29471,3399.0,3398.9,4.17013477]
[1735455385057,3.2078,3399.3,3398.8,0.29473]
[1735455385256,3.95282,3398.9,3398.2,9.23627206]
[1735455385454,3.95282,3398.9,3398.7,0.29474]
[1735455385755,3.95282,3398.9,3398.2,9.23627206]
[1735455385756,0.4239,3398.8,3398.2,9.23627206]
[1735455385954,0.29474,3398.7,3398.6,0.29474]
[1735455386363,0.71863,3398.8,3398.3,0.29477]
[1735455386659,0.71863,3398.8,3398.7,0.29474]
[1735455387252,1.15033,3398.8,3398.7,0.29474]
[1735455389958,0.8556,3398.8,3398.2,6.86693784]
[1735455390159,0.29477,3398.3,3398.1,9.45944612]
[1735455390460,0.29478,3398.2,3398.1,9.16465612]
[1735455390661,1.59348,3398.2,3398.1,9.16465612]
[1735455391358,1.59348,3398.2,3398.0,0.2948]
[1735455391559,0.2948,3398.1,3397.9,0.29481]
[1735455391759,0.2948,3398.1,3397.8,7.16787157]
[1735455391760,3.2078,3398.1,3397.8,7.16787157]
[1735455392163,3.2078,3398.1,3397.8,6.87306157]
[1735455392352,0.29481,3398.0,3397.8,6.87306157]
[1735455392552,0.29481,3397.9,3397.7,7.16788157]
[1735455392865,3.2078,3398.1,3397.7,7.16788157]
[1735455393271,0.2948,3398.0,3397.8,0.29482]
[1735455394364,0.2948,3398.0,3397.6,7.30676157]
[1735455394365,3.2078,3398.1,3397.6,6.87306157]
[1735455394567,0.29483,3397.8,3397.6,6.87306157]
[1735455395264,0.29483,3397.8,3397.6,7.16789157]
[1735455395470,0.29483,3397.7,3397.5,2.66417422]
[1735455395867,1.3631,3397.6,3397.5,2.66417422]
[1735455396776,3.2078,3398.1,3397.5,2.66417422]
[1735455397277,0.29483,3397.7,3397.5,2.66417422]
[1735455397980,0.29482,3397.8,3397.6,0.29484]
[1735455399570,0.2948,3398.0,3397.7,0.29482]
[1735455399776,0.29482,3397.8,3397.6,0.29483]
[1735455399973,0.29482,3397.8,3397.6,0.29484]
[1735455402476,9.898,3397.8,3397.3,1.209]
[1735455402676,0.29494,3396.4,3396.3,8.571434]
[1735455402978,0.29495,3396.3,3396.2,20.12012795]
[1735455403283,3.50275,3396.3,3396.2,20.12012795]
[1735455404275,0.295,3395.8,3395.5,0.29502]
[1735455404476,3.2078,3395.6,3395.5,0.29502]
[1735455404876,3.2078,3395.6,3395.5,16.28604764]
[1735455408386,3.2078,3395.6,3395.5,15.99102764]
[1735455410583,3.2078,3395.6,3395.5,16.28604764]
[1735455412385,3.2078,3395.6,3395.5,15.99102764]
[1735455412587,3.50281,3395.6,3395.5,15.99102764]
[1735455421499,0.29504,3395.2,3395.1,0.462]
[1735455421802,5.87217422,3395.2,3395.1,0.462]
[1735455422001,5.87217422,3395.2,3395.1,16.45302764]
[1735455422202,5.87217422,3395.2,3395.1,0.462]
[1735455422501,0.2951,3394.7,3394.6,0.876]
[1735455422692,5.87223422,3394.7,3394.6,0.876]
[1735455422897,5.87223422,3394.7,3394.6,16.86702764]
[1735455425899,1.47478,3396.3,3394.6,16.86702764]
[1735455425900,6.56540901,3397.0,3396.4,4.859]
[1735455426099,1.93760901,3397.0,3396.9,2.36933422]
[1735455426404,0.53720901,3397.0,3396.6,3.2078]
[1735455426606,0.53720901,3397.0,3396.6,3.50272]
[1735455426804,3.74500901,3397.2,3396.7,0.29491]
[1735455427008,0.53720901,3397.2,3396.6,3.2078]
[1735455427395,0.53720901,3397.2,3396.9,0.29489]
[1735455427907,0.53720901,3397.2,3397.0,0.29489]
[1735455428304,3.50264,3397.6,3397.0,0.29489]
[1735455428509,3.50264,3397.6,3397.1,0.29488]
[1735455429201,3.50264,3397.6,3396.6,3.2078]
[1735455429400,3.50264,3397.6,3396.8,0.29491]
[1735455429600,3.50264,3397.6,3397.3,0.29486]
[1735455430202,3.2078,3397.6,3396.8,2.36933422]
[1735455430401,3.2078,3397.6,3397.4,0.29485]
[1735455432009,3.2078,3397.6,3397.5,0.29484]
[1735455433113,3.9624,3398.1,3397.8,0.29481]
[1735455436014,3.6676,3398.1,3397.2,3.2078]
[1735455436314,3.6676,3398.1,3397.9,0.2948]
[1735455437110,3.6676,3398.1,3397.2,3.2078]
[1735455437415,3.6676,3398.1,3398.0,0.2948]
[1735455438419,0.4598,3398.1,3398.0,0.2948]
[1735455439113,3.50256,3398.5,3397.9,3.2078]
[1735455439307,3.2078,3398.5,3398.3,0.29477]
[1735455440821,3.50256,3398.5,3398.3,0.29477]
[1735455441216,3.2078,3398.5,3398.3,0.29477]
[1735455441617,3.50256,3398.5,3398.3,0.29477]
[1735455443113,0.29477,3398.4,3397.9,3.2078]
[1735455443314,0.29477,3398.4,3398.3,0.29477]
[1735455444118,3.2078,3398.5,3398.3,0.29477]
[1735455444313,3.50256,3398.5,3398.3,0.29477]
[1735455444706,0.29477,3398.4,3398.3,0.29477]
[1735455445220,0.29477,3398.4,3397.9,3.2078]
[1735455445418,0.29477,3398.4,3398.2,0.29478]
[1735455445613,0.29477,3398.4,3397.9,3.2078]
[1735455445814,0.29477,3398.4,3398.2,0.29478]
[1735455446619,0.29477,3398.4,3398.0,0.2948]
[1735455446814,0.29477,3398.4,3398.2,0.29478]
[1735455447220,3.2078,3398.8,3398.2,0.29478]
[1735455448118,0.29477,3398.4,3398.2,0.29478]
[1735455448918,0.29477,3398.3,3398.2,0.29478]
[1735455455820,0.4416,3398.7,3398.0,3.2078]
[1735455456020,0.29478,3398.3,3398.0,3.2078]
[1735455456223,0.29478,3398.3,3398.2,0.29478]
[1735455458333,0.29479,3398.1,3398.0,3.5026]
[1735455458526,0.29481,3397.9,3397.6,3.2078]
[1735455458726,0.29494,3396.4,3396.0,9.10872967]
[1735455459034,3.50277,3396.1,3396.0,8.46775967]
[1735455459338,0.29499,3395.8,3395.7,11.38749866]
[1735455460737,0.29504,3395.3,3394.9,1.51706]
[1735455461640,0.29504,3395.3,3394.9,0.29506]
[1735455462039,0.29504,3395.3,3395.0,0.29506]
[1735455463928,0.29504,3395.2,3395.0,0.29506]
[1735455464431,0.29504,3395.2,3394.8,5.99823422]
[1735455464631,0.29504,3395.2,3395.0,0.29506]
[1735455467339,3.2078,3395.6,3395.0,0.29506]
[1735455467540,0.29504,3395.3,3395.0,0.29506]
[1735455468435,3.2078,3395.6,3394.8,5.99823422]
[1735455468844,0.29504,3395.3,3395.0,0.29506]
[1735455471646,0.29504,3395.3,3395.1,0.29505]
[1735455473238,3.2078,3395.6,3394.8,3.6289]
[1735455473438,0.29503,3395.4,3395.2,0.29504]
[1735455473744,0.29502,3395.5,3395.1,0.29505]
[1735455473933,0.29503,3395.4,3395.1,0.29505]
[1735455474444,0.29503,3395.4,3395.2,0.29504]
[1735455475745,3.50283,3395.4,3395.2,0.29504]
[1735455476542,3.50283,3395.4,3395.3,0.29504]
[1735455478544,3.2078,3395.4,3395.3,0.29504]
[1735455486240,3.2078,3395.8,3394.9,0.73766]
[1735455486446,3.50279,3395.8,3395.7,0.29499]
[1735455489352,3.2078,3395.8,3395.7,0.29499]
[1735455489958,3.2078,3395.8,3395.7,1.52999]
[1735455494358,1.47419,3397.7,3396.1,3.2078]
[1735455494359,3.44428644,3397.7,3396.1,3.2078]
[1735455494658,0.23464677,3397.9,3397.8,0.29482]
[1735455494863,3.59530513,3398.2,3398.1,0.29479]
[1735455495065,3.59530513,3398.2,3398.1,3.50259]
[1735455496261,0.909,3398.9,3398.1,3.2078]
[1735455496462,0.909,3398.9,3398.7,0.29474]
[1735455498159,0.909,3398.9,3398.1,3.2078]
[1735455498370,0.909,3398.9,3398.7,0.29473]
[1735455498955,0.909,3398.9,3398.8,0.29473]
[1735455502466,0.909,3398.9,3398.4,2.36933422]
[1735455503270,3.2078,3399.0,3398.9,0.29472]
[1735455505564,0.4622,3399.2,3398.7,2.36933422]
[1735455505771,0.4622,3399.2,3399.0,0.29471]
[1735455506170,0.4622,3399.2,3399.1,0.29471]
[1735455507771,0.7569,3399.2,3399.0,0.29471]
[1735455510172,0.7569,3399.2,3399.1,0.29471]
[1735455511177,0.4622,3399.2,3399.1,0.29471]
[1735455512168,0.4622,3399.2,3398.5,6.00073422]
[1735455512371,0.7569,3399.2,3398.5,6.00073422]
[1735455512574,0.7569,3399.2,3399.0,0.29471]
[1735455512769,5.4622,3399.2,3397.0,3.2078]
[1735455512970,0.29484,3397.6,3397.0,3.2078]
[1735455513176,0.29483,3397.7,3397.4,0.29485]
[1735455513474,3.2078,3397.9,3397.0,3.2078]
[1735455513678,3.2078,3397.9,3397.5,0.29484]
[1735455513870,0.29483,3397.7,3397.5,0.29484]
[1735455514267,3.2078,3397.9,3397.0,3.2078]
[1735455514574,3.50261,3397.9,3397.7,0.29482]
[1735455515077,3.50261,3397.9,3397.1,3.10652422]
[1735455515078,0.29482,3397.8,3397.1,3.10652422]
[1735455515274,0.29482,3397.8,3397.6,0.29483]
[1735455516079,3.2078,3397.9,3397.1,2.36933422]
[1735455516278,0.29484,3397.6,3397.4,0.29485]
[1735455516976,3.2078,3397.9,3397.4,0.29485]
[1735455517176,0.29484,3397.5,3397.4,0.29485]
[1735455517367,0.29484,3397.6,3397.4,0.29485]
[1735455518774,0.29484,3397.5,3397.3,0.29486]
[1735455518975,3.2078,3397.9,3397.0,3.2078]
[1735455519174,0.29484,3397.6,3397.4,0.29485]
[1735455519372,0.29484,3397.5,3397.4,0.29485]
[1735455519680,0.29483,3397.7,3397.5,0.29484]
[1735455519876,0.29484,3397.6,3397.5,0.29484]
[1735455522180,0.29484,3397.6,3397.4,0.29485]
[1735455522375,0.29484,3397.6,3397.5,0.29484]
[1735455524783,0.29477,3398.4,3398.0,0.29479]
[1735455524982,0.29479,3398.2,3398.0,0.29479]
[1735455525776,0.29477,3398.3,3398.0,0.29479]
[1735455525981,0.29479,3398.2,3398.0,0.29479]
[1735455526284,0.29479,3398.1,3398.0,0.29479]
[1735455526480,3.50259,3398.1,3398.0,0.29479]
[1735455527386,3.2078,3398.1,3398.0,0.29479]
[1735455527981,3.50259,3398.1,3398.0,0.29479]
[1735455528592,3.2078,3398.1,3398.0,0.29479]
[1735455536089,0.29478,3398.3,3398.2,0.29478]
[1735455540885,3.2078,3398.4,3398.3,0.29477]
[1735455541089,1.20084,3398.7,3397.9,2.36933422]
[1735455541090,1.20084,3398.7,3398.6,0.29475]
[1735455541591,0.9061,3398.7,3398.2,0.4278]
[1735455541795,0.29476,3398.6,3398.5,0.29475]
[1735455541985,1.20084,3398.7,3398.6,0.29475]
[1735455542185,0.29476,3398.5,3398.4,0.29476]
[1735455543383,0.29478,3398.3,3398.2,0.29478]
[1735455544597,0.29477,3398.4,3398.3,0.29477]
[1735455547390,3.2078,3398.5,3397.8,0.4278]
[1735455547588,3.2078,3398.5,3398.2,0.29478]
[1735455547589,0.29478,3398.3,3398.2,0.29478]
[1735455548599,0.29477,3398.4,3398.3,0.29477]
[1735455550699,3.2078,3398.6,3397.8,3.6356]
[1735455550996,0.29478,3398.3,3398.2,0.29478]
[1735455553597,0.29477,3398.4,3398.3,0.29477]
[1735455554697,3.2078,3398.6,3397.8,3.6356]
[1735455554901,0.29479,3398.2,3398.1,0.29479]
[1735455556300,0.29481,3398.0,3397.9,0.2948]
[1735455558200,4.00099382,3398.1,3397.8,3.6356]
[1735455558392,4.29579382,3398.1,3398.0,0.2948]
[1735455559599,0.8241,3398.1,3398.0,0.2948]
[1735455560601,4.0319,3398.1,3398.0,0.2948]
[1735455561101,7.50359382,3398.1,3398.0,0.2948]
[1735455562796,3.47169382,3398.1,3398.0,0.2948]
[1735455563800,3.47169382,3398.1,3397.9,2.36933422]
[1735455563801,3.47169382,3398.4,3397.9,6.92005206]
[1735455564000,3.47169382,3398.4,3398.3,0.29477]
[1735455564901,0.29476,3398.5,3398.1,4.55071784]
[1735455564902,3.76645382,3398.5,3398.1,4.55071784]
[1735455565201,3.76645382,3398.5,3398.4,0.29477]
[1735455565202,3.47169382,3398.5,3398.4,0.29477]
[1735455566199,4.88678278,3398.6,3398.2,0.5368]
[1735455566502,4.88678278,3398.6,3398.5,0.29476]
[1735455579307,0.29477,3398.5,3398.4,0.29476]
[1735455579508,3.50257,3398.5,3398.4,0.29476]
[1735455580714,8.14046544,3398.5,3398.4,0.29476]
[1735455584013,7.84569544,3398.5,3398.4,0.29476]
[1735455584221,4.63789544,3398.5,3398.4,0.29476]
[1735455584607,4.93264544,3398.6,3398.2,1.57799824]
[1735455584812,4.93264544,3398.6,3398.5,0.29476]
[1735455585918,0.29475,3398.6,3398.5,0.29476]
[1735455590527,4.93231455,3398.6,3398.5,0.29476]
[1735455591933,0.29475,3398.6,3398.5,0.29476]
[1735455597334,4.93234617,3398.6,3398.5,0.29476]
[1735455601538,4.63759617,3398.6,3398.5,0.29476]
[1735455601743,4.93234617,3398.6,3398.5,0.29476]
[1735455604037,0.29475,3398.6,3398.5,0.29476]
[1735455604746,6.47084315,3398.7,3398.6,0.29475]
[1735455606441,6.17609315,3398.7,3398.3,0.6186]
[1735455606646,0.29476,3398.6,3398.5,0.29475]
[1735455607041,0.29476,3398.6,3398.3,0.6186]
[1735455607042,0.29476,3398.5,3398.4,0.29476]
[1735455608645,0.91116,3398.5,3398.4,0.29476]
[1735455609046,6.63935315,3398.5,3398.4,0.29476]
[1735455611446,0.91116,3398.5,3398.4,0.29476]
[1735455612951,0.6164,3398.5,3398.4,0.29476]
[1735455613552,6.02294315,3398.6,3398.3,0.6186]
[1735455613750,6.02294315,3398.6,3398.5,0.29476]
[1735455614145,5.72819315,3398.6,3398.5,0.29476]
[1735455615151,5.72819315,3398.7,3398.6,0.29475]
[1735455616355,5.72819315,3398.8,3398.4,6.22811608]
[1735455616550,6.02292315,3398.8,3398.7,0.29474]
[1735455617156,0.29473,3398.8,3398.7,0.29474]
[1735455619252,3.8333,3398.9,3398.5,0.29475]
[1735455619253,0.29476,3398.6,3398.5,0.29475]
[1735455621253,6.09700328,3398.6,3398.5,0.29475]
[1735455621853,9.30480328,3398.6,3398.5,0.29475]
[1735455622447,9.01004328,3398.6,3398.3,0.6186]
[1735455622654,0.29477,3398.4,3398.3,0.91337]
[1735455623555,0.6759,3398.4,3398.3,1.95456824]
[1735455623956,0.97067,3398.4,3398.3,1.95456824]
[1735455625159,5.31776295,3398.4,3398.3,1.95456824]
[1735455626053,5.61253295,3398.4,3398.3,1.95456824]
[1735455628957,0.29477,3398.3,3398.2,4.55071784]
[1735455629460,0.92927,3398.3,3398.2,4.55071784]
[1735455630767,0.29479,3398.1,3398.0,0.2948]
[1735455631152,6.73152328,3398.3,3398.2,0.29478]
[1735455634564,0.92928,3398.3,3398.2,0.29478]
[1735455636567,0.29479,3398.2,3398.1,0.29479]
[1735455637860,0.6345,3398.3,3398.0,0.2948]
[1735455637861,0.2948,3398.1,3398.0,0.2948]
[1735455639071,0.2948,3398.0,3397.9,1.53741]
[1735455639370,0.2948,3398.0,3397.8,1.04119824]
[1735455639371,0.29482,3397.8,3397.7,0.29482]
[1735455640170,3.7727897,3397.8,3397.7,0.29482]
[1735455640868,0.29483,3397.7,3397.6,0.98044]
[1735455641071,0.29483,3397.7,3397.6,0.6856]
[1735455643071,4.63729294,3397.8,3397.4,0.29485]
[1735455643072,5.67849118,3397.8,3397.4,0.29485]
[1735455643269,3.50264,3397.5,3397.4,0.29485]
[1735455645675,3.50264,3397.5,3397.4,1.33604824]
[1735455650176,3.50264,3397.5,3397.4,1.04119824]
[1735455651680,3.50264,3397.5,3397.4,1.33604824]
[1735455659681,3.2078,3397.5,3397.4,1.33604824]
[1735455660483,3.50264,3397.5,3397.4,1.33604824]
[1735455660783,3.2078,3397.5,3397.4,1.33604824]
[1735455661083,3.50264,3397.5,3397.4,1.33604824]
[1735455661983,3.2078,3397.5,3397.4,1.33604824]
[1735455665485,0.29483,3397.7,3397.6,0.29484]
[1735455665787,4.83095756,3397.9,3397.8,0.29482]
[1735455665788,3.47525756,3397.9,3397.8,0.29482]
[1735455666089,3.47525756,3397.9,3397.8,1.33601824]
[1735455667182,3.2078,3398.0,3397.9,0.29481]
[1735455673791,5.80224328,3398.7,3397.9,9.98602824]
[1735455673988,5.80224328,3398.7,3398.4,0.29477]
[1735455675196,3.50254,3398.8,3398.4,0.29477]
[1735455675493,0.29475,3398.7,3398.6,0.29475]
[1735455675693,0.29476,3398.6,3398.5,0.29476]
[1735455675990,3.2078,3398.8,3398.2,4.55071784]
[1735455676188,0.29477,3398.4,3398.3,0.29477]
[1735455676691,4.24899824,3398.8,3398.2,0.29478]
[1735455676692,0.29478,3398.3,3398.2,0.29478]
[1735455676888,1.58028,3398.3,3398.2,0.29478]
[1735455679487,0.29479,3398.2,3398.1,0.29479]
[1735455679796,0.6689,3398.2,3398.1,0.29479]
[1735455679996,0.96368,3398.2,3398.1,0.29479]